fUSD/lending_fUSD_20240915
["ID","MTS","AMOUNT","RATE_DAILY","PERIOD"]
[338193780,1726381850148,-500.0,0.00012993,2]
[338193781,1726381850157,-500.0,0.00012993,2]
[338193782,1726381850166,-500.0,0.00012993,2]
[338193783,1726381850175,-815.57,0.00012993,2]
[338193784,1726381850184,-653.94,0.00012993,2]
[338193785,1726381850194,-500.0,0.00012993,2]
[338193786,1726381850203,-1911.42,0.00012993,2]
[338193787,1726381850213,-500.0,0.00012993,2]
[338193788,1726381850222,-928.7,0.00012993,2]
[338193789,1726381850231,-1350.49,0.00012993,2]
[338193790,1726381850241,-500.0,0.00012993,2]
[338193791,1726381850250,-500.0,0.00012993,2]
[338193792,1726381850260,-500.0,0.00012993,2]
[338193793,1726381850270,-978.78,0.00012993,2]
[338193794,1726381850280,-500.0,0.00012993,2]
[338193795,1726381850289,-798.75,0.00012993,2]
[338193796,1726381850299,-1391.08,0.00012993,2]
[338193797,1726381850308,-818.39,0.00012993,2]
[338193798,1726381850317,-500.0,0.00012993,2]
[338193799,1726381850326,-1263.61,0.00012993,2]
[338193800,1726381850335,-1098.62,0.00012993,2]
[338193801,1726381850345,-3855.34,0.00012993,2]
[338193802,1726381850354,-1496.11,0.00012993,2]
[338193803,1726381850363,-955.37,0.00012993,2]
[338193804,1726381850372,-1674.18,0.00012993,2]
[338193805,1726381850385,-18855.33,0.00012993,2]
[338193806,1726381850395,-754.19,0.00012993,2]
[338193807,1726381850404,-996.34,0.00012993,2]
[338193808,1726381850413,-500.0,0.00012993,2]
[338193809,1726381850422,-689.31,0.00012993,2]
[338193810,1726381850432,-161.81658437,0.00012993,2]
[338193811,1726381850441,-500.0,0.00012993,2]
[338193812,1726381850450,-895.97,0.00012993,2]
[338193813,1726381850460,-3692.58,0.00012993,2]
[338193814,1726381850469,-623.26,0.00012993,2]
[338193815,1726381850479,-1017.51,0.00012993,2]
[338193816,1726381850488,-500.0,0.00012993,2]
[338193817,1726381850497,-938.75,0.00012993,2]
[338193818,1726381850510,-500.0,0.00012993,2]
[338193819,1726381850519,-690.38,0.00012993,2]
[338193820,1726381850528,-617.99,0.00012993,2]
[338193821,1726381850537,-500.0,0.00012993,2]
[338193822,1726381850547,-1282.8,0.00012993,2]
[338193823,1726381850555,-500.0,0.00012993,2]
[338193824,1726381850565,-1465.55,0.00012993,2]
[338193825,1726381850574,-500.0,0.00012993,2]
[338193826,1726381850586,-1550.74,0.00012993,2]
[338193827,1726381850596,-500.0,0.00012993,2]
[338193828,1726381850605,-1769.47,0.00012993,2]
[338193829,1726381850614,-500.0,0.00012993,2]
[338193830,1726381850623,-484.84922711,0.00012993,2]
[338193831,1726381850632,-2562.71,0.00012993,2]
[338193832,1726381850641,-500.0,0.00012993,2]
[338193833,1726381850650,-2022.15,0.00012993,2]
[338193834,1726381850659,-500.0,0.00012993,2]
[338193835,1726381850668,-500.0,0.00012993,2]
[338193836,1726381850677,-2446.01,0.00012993,2]
[338193837,1726381850686,-500.0,0.00012993,2]
[338193838,1726381850695,-500.0,0.00012993,2]
[338193839,1726381850705,-1673.72,0.00012993,2]
[338193840,1726381850714,-500.0,0.00012993,2]
[338193841,1726381850723,-723.28,0.00012993,2]
[338193842,1726381850732,-500.0,0.00012993,2]
[338193843,1726381850741,-924.54,0.00012994,2]
[338193844,1726381850750,-500.0,0.00012994,2]
[338193845,1726381850759,-513.68,0.00012994,2]
[338193846,1726381850768,-500.0,0.00012994,2]
[338193847,1726381850777,-500.0,0.00012994,2]
[338193848,1726381850787,-753.47,0.00012994,2]
[338193849,1726381850796,-694.42,0.00012994,2]
[338193850,1726381850805,-500.0,0.00012994,2]
[338193851,1726381850814,-500.0,0.00012994,2]
[338193852,1726381850823,-941.92,0.00012994,2]
[338193853,1726381850833,-500.0,0.00012994,2]
[338193854,1726381850842,-2168.24,0.00012994,2]
[338193855,1726381850852,-553.82,0.00012994,2]
[338193856,1726381850862,-2500.36,0.00012994,2]
[338193857,1726381850871,-500.0,0.00012994,2]
[338193858,1726381850881,-500.0,0.00012994,2]
[338193859,1726381850890,-1883.89,0.00012994,2]
[338193860,1726381850900,-514.37230795,0.00012994,2]
[338193861,1726381850909,-500.0,0.00012994,2]
[338193862,1726381850919,-2071.71,0.00012994,2]
[338193863,1726381850928,-500.0,0.00012994,2]
[338193864,1726381850937,-1363.3,0.00012994,2]
[338193865,1726381850946,-739.52,0.00012994,2]
[338193866,1726381850956,-500.0,0.00012994,2]
[338193867,1726381850965,-2218.08,0.00012994,2]
[338193868,1726381850974,-206.15675939,0.00012994,2]
[338193869,1726381850984,-795.98,0.00012994,2]
[338193870,1726381850993,-1250.2,0.00012994,2]
[338193871,1726381851002,-1774.39,0.00012994,2]
[338193872,1726381851012,-972.19,0.00012994,2]
[338193873,1726381851021,-500.0,0.00012994,2]
[338193874,1726381851034,-500.0,0.00012994,2]
[338193875,1726381851044,-150.0,0.00012994,2]
[338193876,1726381851053,-2412.22,0.00012994,2]
[338193877,1726381851063,-500.0,0.00012994,2]
[338193878,1726381851073,-920.21,0.00012994,2]
[338193879,1726381851082,-5000.0,0.00012994,2]
[338193880,1726381851091,-1580.63,0.00012994,2]
[338193881,1726381851101,-2224.88,0.00012994,2]
[338193882,1726381851110,-2163.16,0.00012994,2]
[338193883,1726381851120,-1146.14,0.00012994,2]
[338193884,1726381851130,-500.0,0.00012994,2]
[338193885,1726381851139,-500.0,0.00012994,2]
[338193886,1726381851149,-500.0,0.00012994,2]
[338193887,1726381851159,-1678.48,0.00012994,2]
[338193888,1726381851169,-670.27,0.00012994,2]
[338193889,1726381851179,-500.0,0.00012994,2]
[338193890,1726381851188,-529.23,0.00012994,2]
[338193891,1726381851198,-1072.72,0.00012994,2]
[338193892,1726381851207,-1067.32,0.00012994,2]
[338193893,1726381851216,-1546.51,0.00012994,2]
[338193894,1726381851226,-2907.09,0.00012994,2]
[338193895,1726381851235,-500.0,0.00012994,2]
[338193896,1726381851244,-2201.17,0.00012994,2]
[338193897,1726381851254,-500.0,0.00012994,2]
[338193898,1726381851263,-500.0,0.00012994,2]
[338193899,1726381851272,-1378.43,0.00012994,2]
[338193900,1726381851281,-796.34,0.00012994,2]
[338193901,1726381851291,-703.34,0.00012994,2]
[338193902,1726381851300,-801.91,0.00012994,2]
[338193903,1726381851316,-500.0,0.00012994,2]
[338193904,1726381851326,-895.15,0.00012994,2]
[338193905,1726381851336,-2475.57,0.00012994,2]
[338193906,1726381851345,-666.08,0.00012994,2]
[338193907,1726381851354,-534.2,0.00012994,2]
[338193908,1726381851363,-1613.03,0.00012994,2]
[338193909,1726381851373,-1867.44,0.00012994,2]
[338193910,1726381851382,-500.0,0.00012994,2]
[338193911,1726381851391,-38325.86703942,0.00013,2]
[338193912,1726381851401,-851.96,0.00013,2]
[338193913,1726381851410,-567622.47587949,0.00013,2]
[338193914,1726381851419,-260905.71625706,0.00013,2]
[338193915,1726381851429,-301.75281792,0.00013,2]
[338193916,1726381851438,-415.854104,0.00013,2]
[338193917,1726381851447,-415.854104,0.00013,2]
[338193918,1726381851457,-1170.60500116,0.00013014,2]
[338193919,1726381851467,-954.10197,0.0001303,2]
[338193920,1726381851476,-315178.68159229,0.00013065,2]
[338193921,1726381851486,-415.854104,0.00013066,2]
[338193922,1726381851495,-415.854104,0.00013066,2]
[338193923,1726381851504,-402.57061811,0.00013087,2]
[338193924,1726381851514,-715.56,0.000131,2]
[338193925,1726381851524,-357.78,0.000131,2]
[338193926,1726381851534,-500.0,0.00013117,2]
[338193927,1726381851544,-150.0,0.000132,2]
[338193928,1726381851554,-150.0,0.000132,2]
[338193929,1726381851564,-357.78,0.000132,2]
[338193930,1726381851573,-357.78,0.000132,2]
[338193931,1726381851583,-150.0,0.000132,2]
[338193932,1726381851593,-357.78,0.000132,2]
[338193933,1726381851603,-150.0,0.000132,2]
[338193934,1726381851612,-357.78,0.000132,2]
[338193935,1726381851621,-357.78,0.000132,2]
[338193936,1726381851631,-357.78,0.000132,2]
[338193937,1726381851640,-357.78,0.000132,2]
[338193938,1726381851651,-357.78,0.000132,2]
[338193939,1726381851660,-357.78,0.000132,2]
[338193940,1726381851670,-714.68,0.000132,2]
[338193941,1726381851679,-357.7,0.000132,2]
[338193942,1726381851688,-890.0,0.00013255,2]
[338193943,1726381851699,-2958.93,0.00013264,2]
[338193944,1726381851710,-2315.46,0.00013264,2]
[338193945,1726381851721,-500.0,0.00013264,2]
[338193946,1726381851730,-3678.48,0.00013264,2]
[338193947,1726381851739,-500.0,0.00013264,2]
[338193948,1726381851748,-1057.31,0.00013264,2]
[338193949,1726381851758,-2251.51,0.00013264,2]
[338193950,1726381851768,-2674.18,0.00013264,2]
[338193951,1726381851777,-2013.29,0.00013264,2]
[338193952,1726381851787,-234.48238416,0.00013264,2]
[338193953,1726381851796,-8583.91,0.00013264,2]
[338193954,1726381851805,-4031.05,0.00013264,2]
[338193955,1726381851825,-2644.82,0.00013264,2]
[338193956,1726381851835,-3282.83,0.00013264,2]
[338193957,1726381851844,-2558.32,0.00013264,2]
[338193958,1726381851853,-1735.74,0.00013264,2]
[338193959,1726381851862,-650.54,0.00013264,2]
[338193960,1726381851871,-1109.29,0.00013264,2]
[338193961,1726381851880,-500.0,0.00013264,2]
[338193962,1726381851889,-500.0,0.00013264,2]
[338193963,1726381851898,-1241.38,0.00013264,2]
[338193964,1726381851908,-1558.58,0.00013264,2]
[338193965,1726381851917,-739.05,0.00013264,2]
[338193966,1726381851927,-1855.48,0.00013264,2]
[338193967,1726381851936,-1037.58,0.00013264,2]
[338193968,1726381851945,-1526.89,0.00013264,2]
[338193969,1726381851954,-2495.46,0.00013264,2]
[338193970,1726381851963,-464.87,0.00013264,2]
[338193971,1726381851972,-500.0,0.00013265,2]
[338193972,1726381851981,-271.31419185,0.00013265,2]
[338193973,1726381851992,-500.0,0.00013265,2]
[338193974,1726381852002,-500.0,0.00013265,2]
[338193975,1726381852011,-500.0,0.00013265,2]
[338193976,1726381852020,-500.0,0.00013265,2]
[338193977,1726381852034,-1701.25,0.00013265,2]
[338193978,1726381852044,-500.0,0.00013265,2]
[338193979,1726381852054,-500.0,0.00013265,2]
[338193980,1726381852064,-1114.11,0.00013265,2]
[338193981,1726381852074,-186.26990075,0.00013265,2]
[338193982,1726381852083,-500.0,0.00013265,2]
[338193983,1726381852092,-2349.24,0.00013265,2]
[338193984,1726381852101,-500.0,0.00013265,2]
[338193985,1726381852111,-500.0,0.00013265,2]
[338193986,1726381852122,-3450.47,0.00013265,2]
[338193987,1726381852131,-500.0,0.00013265,2]
[338193988,1726381852140,-1168.08,0.00013265,2]
[338193989,1726381852149,-500.0,0.00013265,2]
[338193990,1726381852158,-3052.49,0.00013265,2]
[338193991,1726381852167,-1403.46,0.00013265,2]
[338193992,1726381852176,-1403.46,0.00013265,2]
[338193993,1726381852186,-500.0,0.00013265,2]
[338193994,1726381852195,-4548.21,0.00013265,2]
[338193995,1726381852205,-500.0,0.00013265,2]
[338193996,1726381852214,-20000.0,0.00013265,2]
[338193997,1726381852226,-2710.49,0.00013265,2]
[338193998,1726381852235,-2102.01,0.00013265,2]
[338193999,1726381852244,-329.01807012,0.00013265,2]
[338194000,1726381852254,-500.0,0.00013265,2]
[338194001,1726381852264,-2434.9,0.00013265,2]
[338194002,1726381852274,-500.0,0.00013265,2]
[338194003,1726381852283,-500.0,0.00013265,2]
[338194004,1726381852292,-500.0,0.00013265,2]
[338194005,1726381852302,-5803.78,0.00013265,2]
[338194006,1726381852312,-1395.56,0.00013265,2]
[338194007,1726381852321,-500.0,0.00013265,2]
[338194008,1726381852330,-648.02,0.00013265,2]
[338194009,1726381852340,-2037.82,0.00013265,2]
[338194010,1726381852350,-500.0,0.00013265,2]
[338194011,1726381852359,-500.0,0.00013265,2]
[338194012,1726381852368,-500.0,0.00013265,2]
[338194013,1726381852377,-500.0,0.00013265,2]
[338194014,1726381852387,-500.0,0.00013265,2]
[338194015,1726381852396,-500.0,0.00013265,2]
[338194016,1726381852405,-500.0,0.00013265,2]
[338194017,1726381852414,-971.75,0.00013265,2]
[338194018,1726381852424,-1165.64,0.00013265,2]
[338194019,1726381852433,-500.0,0.00013265,2]
[338194020,1726381852442,-851.23,0.00013265,2]
[338194021,1726381852451,-1065.26,0.00013265,2]
[338194022,1726381852461,-500.0,0.00013265,2]
[338194023,1726381852471,-500.0,0.00013265,2]
[338194024,1726381852480,-1070.77,0.00013265,2]
[338194025,1726381852490,-500.0,0.00013265,2]
[338194026,1726381852499,-703.54,0.00013265,2]
[338194027,1726381852509,-1988.7,0.00013265,2]
[338194028,1726381852520,-500.0,0.00013265,2]
[338194029,1726381852530,-500.0,0.00013265,2]
[338194030,1726381852540,-500.0,0.00013265,2]
[338194031,1726381852550,-284.38911371,0.00013265,2]
[338194032,1726381852560,-1991.51,0.00013265,2]
[338194033,1726381852570,-500.0,0.00013265,2]
[338194034,1726381852580,-500.0,0.00013265,2]
[338194035,1726381852590,-500.0,0.00013265,2]
[338194036,1726381852600,-500.0,0.00013265,2]
[338194037,1726381852610,-1662.2,0.00013265,2]
[338194038,1726381852620,-500.0,0.00013265,2]
[338194039,1726381852631,-835.92,0.00013265,2]
[338194040,1726381852642,-635.73209008,0.00013265,2]
[338194041,1726381852652,-500.0,0.00013265,2]
[338194042,1726381852661,-500.0,0.00013265,2]
[338194043,1726381852857,-2062.17,0.00013265,2]
[338194044,1726381852898,-2340.26,0.00013265,2]
[338194045,1726381852908,-500.0,0.00013265,2]
[338194046,1726381852918,-559.74,0.00013265,2]
[338194047,1726381852927,-500.0,0.00013265,2]
[338194048,1726381852937,-1041.62,0.00013265,2]
[338194049,1726381852946,-500.0,0.00013265,2]
[338194050,1726381852956,-500.0,0.00013265,2]
[338194051,1726381852965,-500.0,0.00013265,2]
[338194052,1726381852975,-500.0,0.00013265,2]
[338194053,1726381852985,-263.05886146,0.00013265,2]
[338194054,1726381853006,-236.94113854,0.00013265,2]
[338194055,1726381853016,-500.0,0.00013265,2]
[338194056,1726381853028,-500.0,0.00013265,2]
[338194057,1726381853038,-1762.55,0.00013265,2]
[338194058,1726381853048,-500.0,0.00013265,2]
[338194059,1726381853058,-500.0,0.00013265,2]
[338194060,1726381853068,-500.0,0.00013265,2]
[338194061,1726381853079,-500.0,0.00013265,2]
[338194062,1726381853089,-500.0,0.00013265,2]
[338194063,1726381853099,-644.79,0.00013265,2]
[338194064,1726381853109,-229.08501712,0.00013265,2]
[338194065,1726381853119,-500.0,0.00013265,2]
[338194066,1726381853129,-806.14,0.00013265,2]
[338194067,1726381853139,-500.0,0.00013265,2]
[338194068,1726381853148,-2112.34,0.00013265,2]
[338194069,1726381853158,-500.0,0.00013265,2]
[338194070,1726381853168,-500.0,0.00013265,2]
[338194071,1726381853178,-1224.87,0.00013265,2]
[338194072,1726381853187,-470.72878433,0.00013265,2]
[338194073,1726381853198,-500.0,0.00013265,2]
[338194074,1726381853208,-500.0,0.00013265,2]
[338194075,1726381853218,-500.0,0.00013265,2]
[338194076,1726381853228,-500.0,0.00013265,2]
[338194077,1726381853238,-500.0,0.00013265,2]
[338194078,1726381853247,-190.865026,0.00013265,2]
[338194079,1726381853257,-500.0,0.00013265,2]
[338194080,1726381853266,-1707.24,0.00013265,2]
[338194081,1726381853276,-500.0,0.00013265,2]
[338194082,1726381853285,-500.0,0.00013265,2]
[338194083,1726381853295,-679.24,0.00013265,2]
[338194084,1726381853304,-500.0,0.00013265,2]
[338194085,1726381853314,-1824.31,0.00013265,2]
[338194086,1726381853324,-500.0,0.00013265,2]
[338194087,1726381853333,-500.0,0.00013265,2]
[338194088,1726381853343,-500.0,0.00013265,2]
[338194089,1726381853352,-1577.65,0.00013265,2]
[338194090,1726381853362,-500.0,0.00013265,2]
[338194091,1726381853371,-2332.16,0.00013265,2]
[338194092,1726381853380,-500.0,0.00013265,2]
[338194093,1726381853390,-500.0,0.00013265,2]
[338194094,1726381853399,-2376.78,0.00013265,2]
[338194095,1726381853409,-500.0,0.00013265,2]
[338194096,1726381853418,-500.0,0.00013265,2]
[338194097,1726381853427,-1063.36,0.00013265,2]
[338194098,1726381853437,-500.0,0.00013265,2]
[338194099,1726381853446,-500.0,0.00013265,2]
[338194100,1726381853456,-4034.47,0.00013265,2]
[338194101,1726381853466,-4575.76,0.00013265,2]
[338194102,1726381853475,-500.0,0.00013265,2]
[338194103,1726381853485,-653.63,0.00013265,2]
[338194104,1726381853495,-500.0,0.00013265,2]
[338194105,1726381853504,-1225.33,0.00013265,2]
[338194106,1726381853514,-6403.61,0.00013265,2]
[338194107,1726381853524,-500.0,0.00013265,2]
[338194108,1726381853533,-500.0,0.00013265,2]
[338194109,1726381853543,-6168.92,0.00013265,2]
[338194110,1726381853552,-500.0,0.00013265,2]
[338194111,1726381853562,-2396.41,0.00013265,2]
[338194112,1726381853571,-1062.74,0.00013265,2]
[338194113,1726381853580,-500.0,0.00013265,2]
[338194114,1726381853590,-2031.55,0.00013265,2]
[338194115,1726381853599,-7006.81,0.00013265,2]
[338194116,1726381853608,-500.0,0.00013265,2]
[338194117,1726381853617,-500.0,0.00013265,2]
[338194118,1726381853626,-855.45,0.00013265,2]
[338194119,1726381853635,-641.23,0.00013265,2]
[338194120,1726381853645,-500.0,0.00013265,2]
[338194121,1726381853654,-500.0,0.00013265,2]
[338194122,1726381853663,-1409.53,0.00013265,2]
[338194123,1726381853673,-500.0,0.00013265,2]
[338194124,1726381853683,-5427.04,0.00013265,2]
[338194125,1726381853694,-2346.72,0.00013265,2]
[338194126,1726381853704,-425.07213266,0.00013265,2]
[338194127,1726381853714,-500.0,0.00013265,2]
[338194128,1726381853724,-628.45,0.00013265,2]
[338194129,1726381853734,-1133.32,0.00013265,2]
[338194130,1726381853743,-500.0,0.00013265,2]
[338194131,1726381853753,-2869.28,0.00013265,2]
[338194132,1726381853762,-1234.8,0.00013265,2]
[338194133,1726381853772,-500.0,0.00013265,2]
[338194134,1726381853785,-1372.68,0.00013265,2]
[338194135,1726381853795,-500.0,0.00013265,2]
[338194136,1726381853807,-2757.61,0.00013265,2]
[338194137,1726381853816,-1363.53,0.00013265,2]
[338194138,1726381853826,-5576.77,0.00013265,2]
[338194139,1726381853838,-590.57,0.00013265,2]
[338194140,1726381853848,-1299.06,0.00013265,2]
[338194141,1726381853858,-1609.91,0.00013265,2]
[338194142,1726381853867,-2454.9,0.00013265,2]
[338194143,1726381853876,-827.04,0.00013265,2]
[338194144,1726381853886,-500.0,0.00013265,2]
[338194145,1726381853895,-766.51,0.00013265,2]
[338194146,1726381853904,-500.0,0.00013265,2]
[338194147,1726381853913,-3973.29,0.00013265,2]
[338194148,1726381853923,-500.0,0.00013265,2]
[338194149,1726381853935,-885.13,0.00013265,2]
[338194150,1726381853944,-1796.62,0.00013265,2]
[338194151,1726381853954,-1845.6,0.00013265,2]
[338194152,1726381853963,-779.42,0.00013265,2]
[338194153,1726381853972,-1157.7,0.00013265,2]
[338194154,1726381853981,-500.0,0.00013265,2]
[338194155,1726381853991,-500.0,0.00013265,2]
[338194156,1726381854000,-500.0,0.00013265,2]
[338194157,1726381854009,-567.31,0.00013265,2]
[338194158,1726381854019,-1981.58,0.00013265,2]
[338194159,1726381854032,-2267.44,0.00013265,2]
[338194160,1726381854041,-758.06,0.00013265,2]
[338194161,1726381854051,-1248.64,0.00013265,2]
[338194162,1726381854060,-500.0,0.00013265,2]
[338194163,1726381854071,-6225.35,0.00013265,2]
[338194164,1726381854081,-1463.04,0.00013265,2]
[338194165,1726381854090,-500.0,0.00013265,2]
[338194166,1726381854100,-3972.57,0.00013265,2]
[338194167,1726381854111,-3644.05,0.00013265,2]
[338194168,1726381854121,-500.0,0.00013265,2]
[338194169,1726381854130,-690.42,0.00013265,2]
[338194170,1726381854140,-1975.5,0.00013265,2]
[338194171,1726381854150,-500.0,0.00013265,2]
[338194172,1726381854160,-415.854104,0.00013265,2]
[338194173,1726381854169,-906.8,0.00013265,2]
[338194174,1726381854178,-500.0,0.00013265,2]
[338194175,1726381854188,-415.854104,0.00013265,2]
[338194176,1726381854197,-807.64,0.00013265,2]
[338194177,1726381854207,-2548.33,0.00013265,2]
[338194178,1726381854217,-500.0,0.00013265,2]
[338194179,1726381854226,-500.0,0.00013265,2]
[338194180,1726381854236,-4214.15,0.00013265,2]
[338194181,1726381854245,-500.0,0.00013265,2]
[338194182,1726381854254,-500.0,0.00013265,2]
[338194183,1726381854264,-8841.34,0.00013265,2]
[338194184,1726381854273,-500.0,0.00013265,2]
[338194185,1726381854283,-2681.14,0.00013265,2]
[338194186,1726381854293,-3678.29,0.00013265,2]
[338194187,1726381854303,-2667.32,0.00013265,2]
[338194188,1726381854313,-2329.32,0.00013265,2]
[338194189,1726381854322,-500.0,0.00013265,2]
[338194190,1726381854331,-764.36,0.00013265,2]
[338194191,1726381854341,-34901.06,0.00013265,2]
[338194192,1726381854352,-2709.86,0.00013265,2]
[338194193,1726381854362,-246.60025929,0.00013265,2]
[338194194,1726381854371,-6583.78,0.00013265,2]
[338194195,1726381854380,-2829.59,0.00013265,2]
[338194196,1726381854390,-626.96672836,0.00013265,2]
[338194197,1726381854399,-500.0,0.00013266,2]
[338194198,1726381854408,-500.0,0.00013266,2]
[338194199,1726381854418,-1809.42,0.00013266,2]
[338194200,1726381854427,-1709.47,0.00013266,2]
[338194201,1726381854437,-2325.79,0.00013266,2]
[338194202,1726381854446,-995.87,0.00013266,2]
[338194203,1726381854455,-2736.79,0.00013266,2]
[338194204,1726381854465,-963.38,0.00013266,2]
[338194205,1726381854474,-500.0,0.00013266,2]
[338194206,1726381854484,-1244.63,0.00013266,2]
[338194207,1726381854493,-500.0,0.00013266,2]
[338194208,1726381854502,-559.91,0.00013266,2]
[338194209,1726381854512,-1553.48,0.00013266,2]
[338194210,1726381854522,-500.0,0.00013266,2]
[338194211,1726381854532,-500.0,0.00013266,2]
[338194212,1726381854543,-2769.88,0.00013266,2]
[338194213,1726381854553,-500.0,0.00013266,2]
[338194214,1726381854563,-500.0,0.00013266,2]
[338194215,1726381854572,-668.02,0.00013266,2]
[338194216,1726381854582,-500.0,0.00013266,2]
[338194217,1726381854592,-500.0,0.00013266,2]
[338194218,1726381854601,-1178.71,0.00013266,2]
[338194219,1726381854611,-500.0,0.00013266,2]
[338194220,1726381854620,-1294.81,0.00013266,2]
[338194221,1726381854630,-500.0,0.00013266,2]
[338194222,1726381854640,-500.0,0.00013266,2]
[338194223,1726381854649,-500.0,0.00013266,2]
[338194224,1726381854659,-500.0,0.00013266,2]
[338194225,1726381854668,-500.0,0.00013266,2]
[338194226,1726381854678,-857.99,0.00013266,2]
[338194227,1726381854687,-1138.5,0.00013266,2]
[338194228,1726381854696,-500.0,0.00013266,2]
[338194229,1726381854706,-500.0,0.00013266,2]
[338194230,1726381854715,-500.0,0.00013266,2]
[338194231,1726381854724,-961.03,0.00013266,2]
[338194232,1726381854734,-500.0,0.00013266,2]
[338194233,1726381854744,-500.0,0.00013266,2]
[338194234,1726381854754,-500.0,0.00013266,2]
[338194235,1726381854763,-500.0,0.00013266,2]
[338194236,1726381854773,-500.0,0.00013266,2]
[338194237,1726381854783,-500.0,0.00013266,2]
[338194238,1726381854793,-500.0,0.00013266,2]
[338194239,1726381854802,-500.0,0.00013266,2]
[338194240,1726381854812,-626.65,0.00013266,2]
[338194241,1726381854831,-500.0,0.00013266,2]
[338194242,1726381854841,-500.0,0.00013266,2]
[338194243,1726381854851,-516.67,0.00013266,2]
[338194244,1726381854861,-500.0,0.00013266,2]
[338194245,1726381854873,-500.0,0.00013266,2]
[338194246,1726381854883,-500.0,0.00013266,2]
[338194247,1726381854893,-500.0,0.00013266,2]
[338194248,1726381854902,-572.23,0.00013266,2]
[338194249,1726381854911,-500.0,0.00013266,2]
[338194250,1726381854921,-500.0,0.00013266,2]
[338194251,1726381854930,-500.0,0.00013266,2]
[338194252,1726381854940,-1304.79,0.00013266,2]
[338194253,1726381854949,-500.0,0.00013266,2]
[338194254,1726381854958,-1685.65,0.00013266,2]
[338194255,1726381854968,-1663.69,0.00013266,2]
[338194256,1726381854978,-1580.13,0.00013266,2]
[338194257,1726381854988,-731.08,0.00013266,2]
[338194258,1726381854998,-500.0,0.00013266,2]
[338194259,1726381855008,-1014.96,0.00013266,2]
[338194260,1726381855017,-1948.09,0.00013266,2]
[338194261,1726381855030,-756.35,0.00013266,2]
[338194262,1726381855040,-821.93,0.00013266,2]
[338194263,1726381855049,-888.43,0.00013266,2]
[338194264,1726381855059,-500.0,0.00013266,2]
[338194265,1726381855070,-622.27,0.00013266,2]
[338194266,1726381855080,-648.17,0.00013266,2]
[338194267,1726381855090,-613.51,0.00013266,2]
[338194268,1726381855100,-500.0,0.00013266,2]
[338194269,1726381855110,-896.19,0.00013266,2]
[338194270,1726381855120,-718.86,0.00013266,2]
[338194271,1726381855130,-172.36256107,0.00013266,2]
[338194272,1726381855140,-1120.15,0.00013266,2]
[338194273,1726381855150,-906.86,0.00013266,2]
[338194274,1726381855159,-541.93,0.00013266,2]
[338194275,1726381855170,-2024.48,0.00013266,2]
[338194276,1726381855179,-1502.28,0.00013266,2]
[338194277,1726381855189,-500.0,0.00013266,2]
[338194278,1726381855200,-500.0,0.00013266,2]
[338194279,1726381855209,-500.0,0.00013266,2]